fUST/lending_fUST_20250630
["ID","MTS","AMOUNT","RATE_DAILY","PERIOD"]
[368620012,1751241049201,-500.0,0.00019031,2]
[368620013,1751241049210,-500.0,0.00019031,2]
[368620014,1751241049220,-500.72984294,0.00019031,2]
[368620015,1751241049229,-460.0,0.00019099,2]
[368620016,1751241049238,-460.0,0.00019099,2]
[368620017,1751241049248,-460.0,0.00019099,2]
[368620018,1751241049257,-460.0,0.00019099,2]
[368620019,1751241049267,-1966.62,0.00019099,2]
[368620020,1751241049277,-460.0,0.00019099,2]
[368620021,1751241049287,-460.0,0.00019099,2]
[368620022,1751241049296,-460.0,0.00019099,2]
[368620023,1751241049308,-460.0,0.00019104,2]
[368620024,1751241049317,-374.78383187,0.00019104,2]
[368620025,1751241049326,-460.0,0.00019104,2]
[368620026,1751241049336,-460.0,0.00019105,2]
[368620027,1751241049345,-1525.14,0.00019105,2]
[368620028,1751241049354,-2512.81,0.00019105,2]
[368620029,1751241049364,-460.0,0.00019105,2]
[368620030,1751241049375,-3259.9,0.00019105,2]
[368620031,1751241049385,-568.58,0.00019105,2]
[368620032,1751241049394,-460.0,0.00019105,2]
[368620033,1751241049404,-460.0,0.00019105,2]
[368620034,1751241049413,-2961.32,0.00019105,2]
[368620035,1751241049422,-460.0,0.00019105,2]
[368620036,1751241049431,-2848.07,0.00019105,2]
[368620037,1751241049441,-3176.44,0.00019105,2]
[368620038,1751241049451,-460.0,0.00019105,2]
[368620039,1751241049460,-460.0,0.00019105,2]
[368620040,1751241049469,-1539.44,0.00019105,2]
[368620041,1751241049479,-460.0,0.00019105,2]
[368620042,1751241049488,-460.0,0.00019105,2]
[368620043,1751241049497,-563.34,0.00019105,2]
[368620044,1751241049507,-499.37,0.00019105,2]
[368620045,1751241049516,-1523.33,0.00019105,2]
[368620046,1751241049526,-460.0,0.00019105,2]
[368620047,1751241049535,-2941.09603807,0.00019107,2]
[368620048,1751241049544,-460.0,0.00019107,2]
[368620049,1751241049554,-460.0,0.00019107,2]
[368620050,1751241049563,-460.0,0.00019107,2]
[368620051,1751241049573,-460.0,0.00019107,2]
[368620052,1751241049582,-460.0,0.00019107,2]
[368620053,1751241049592,-460.0,0.00019107,2]
[368620054,1751241049601,-460.0,0.00019107,2]
[368620055,1751241049611,-460.0,0.00019107,2]
[368620056,1751241049620,-460.0,0.00019107,2]
[368620057,1751241049630,-460.0,0.00019107,2]
[368620058,1751241049639,-460.0,0.00019107,2]
[368620059,1751241049648,-212.28830325,0.00019107,2]
[368620060,1751241049657,-460.0,0.00019107,2]
[368620061,1751241049667,-460.0,0.00019107,2]
[368620062,1751241049676,-602.87,0.00019107,2]
[368620063,1751241049685,-460.0,0.00019107,2]
[368620064,1751241049695,-460.0,0.00019107,2]
[368620065,1751241049703,-750.52,0.00019107,2]
[368620066,1751241049713,-460.0,0.00019107,2]
[368620067,1751241049721,-460.0,0.00019107,2]
[368620068,1751241049731,-348.23200574,0.00019107,2]
[368620069,1751241049740,-460.0,0.00019107,2]
[368620070,1751241049749,-460.0,0.00019107,2]
[368620071,1751241049759,-460.0,0.00019107,2]
[368620072,1751241049768,-665.73,0.00019107,2]
[368620073,1751241049778,-460.0,0.00019107,2]
[368620074,1751241049787,-518.24,0.00019107,2]
[368620075,1751241049796,-460.0,0.00019107,2]
[368620076,1751241049806,-460.0,0.00019107,2]
[368620077,1751241049815,-1005.54,0.00019107,2]
[368620078,1751241049825,-460.0,0.00019107,2]
[368620079,1751241049835,-460.0,0.00019107,2]
[368620080,1751241049845,-460.0,0.00019107,2]
[368620081,1751241049855,-460.0,0.00019107,2]
[368620082,1751241049864,-460.0,0.00019107,2]
[368620083,1751241049874,-460.0,0.00019107,2]
[368620084,1751241049883,-460.0,0.00019107,2]
[368620085,1751241049892,-504.37738238,0.00019107,2]
[368620086,1751241049901,-460.0,0.00019107,2]
[368620087,1751241049910,-460.0,0.00019107,2]
[368620088,1751241049920,-460.0,0.00019108,2]
[368620089,1751241049930,-460.0,0.00019108,2]
[368620090,1751241049941,-460.0,0.00019108,2]
[368620091,1751241049958,-956.85,0.00019108,2]
[368620092,1751241049968,-460.0,0.00019108,2]
[368620093,1751241049977,-460.0,0.00019108,2]
[368620094,1751241049987,-460.0,0.00019108,2]
[368620095,1751241049995,-460.0,0.00019108,2]
[368620096,1751241050006,-460.0,0.00019108,2]
[368620097,1751241050015,-460.0,0.00019108,2]
[368620098,1751241050025,-3836.87,0.00019108,2]
[368620099,1751241050035,-547.33,0.00019108,2]
[368620100,1751241050044,-1212.96,0.00019108,2]
[368620101,1751241050054,-460.0,0.00019108,2]
[368620102,1751241050063,-460.0,0.00019108,2]
[368620103,1751241050073,-460.0,0.00019108,2]
[368620104,1751241050083,-1557.76,0.00019108,2]
[368620105,1751241050093,-511.49,0.00019108,2]
[368620106,1751241050102,-460.0,0.00019108,2]
[368620107,1751241050112,-623.64,0.00019108,2]
[368620108,1751241050122,-460.0,0.00019109,2]
[368620109,1751241050131,-460.0,0.00019109,2]
[368620110,1751241050140,-500.0,0.00019109,2]
[368620111,1751241050149,-1246.97,0.0001911,2]
[368620112,1751241050159,-1117.53,0.0001911,2]
[368620113,1751241050168,-460.0,0.0001911,2]
[368620114,1751241050177,-460.0,0.0001911,2]
[368620115,1751241050186,-460.0,0.0001911,2]
[368620116,1751241050195,-1705.81,0.0001911,2]
[368620117,1751241050204,-460.0,0.0001911,2]
[368620118,1751241050214,-1289.95,0.0001911,2]
[368620119,1751241050223,-1644.07,0.0001911,2]
[368620120,1751241050232,-847.69,0.0001911,2]
[368620121,1751241050242,-460.0,0.0001911,2]
[368620122,1751241050251,-460.0,0.00019111,2]
[368620123,1751241050261,-460.0,0.00019111,2]
[368620124,1751241050270,-460.0,0.00019111,2]
[368620125,1751241050279,-460.0,0.00019111,2]
[368620126,1751241050289,-460.0,0.00019111,2]
[368620127,1751241050298,-460.0,0.00019111,2]
[368620128,1751241050307,-460.0,0.00019111,2]
[368620129,1751241050317,-460.0,0.00019111,2]
[368620130,1751241050326,-460.0,0.00019111,2]
[368620131,1751241050335,-460.0,0.00019111,2]
[368620132,1751241050344,-460.0,0.00019111,2]
[368620133,1751241050354,-460.0,0.00019111,2]
[368620134,1751241050364,-460.0,0.00019111,2]
[368620135,1751241050373,-460.0,0.00019111,2]
[368620136,1751241050383,-475.74,0.00019111,2]
[368620137,1751241050392,-585.0,0.00019111,2]
[368620138,1751241050402,-460.0,0.00019111,2]
[368620139,1751241050412,-460.0,0.00019111,2]
[368620140,1751241050421,-460.0,0.00019111,2]
[368620141,1751241050430,-460.0,0.00019111,2]
[368620142,1751241050439,-460.0,0.00019111,2]
[368620143,1751241050449,-460.0,0.00019111,2]
[368620144,1751241050458,-460.0,0.00019111,2]
[368620145,1751241050467,-460.0,0.00019111,2]
[368620146,1751241050476,-460.0,0.00019111,2]
[368620147,1751241050485,-540.02,0.00019111,2]
[368620148,1751241050494,-729.37,0.00019111,2]
[368620149,1751241050503,-608.38,0.00019111,2]
[368620150,1751241050513,-460.0,0.00019111,2]
[368620151,1751241050522,-460.0,0.00019111,2]
[368620152,1751241050531,-481.31643801,0.00019111,2]
[368620153,1751241050541,-460.0,0.00019111,2]
[368620154,1751241050550,-460.0,0.00019111,2]
[368620155,1751241050559,-460.0,0.00019111,2]
[368620156,1751241050568,-460.0,0.00019111,2]
[368620157,1751241050577,-460.0,0.00019111,2]
[368620158,1751241050701,-460.0,0.00019111,2]
[368620159,1751241050711,-460.0,0.00019111,2]
[368620160,1751241050720,-546.36,0.00019112,2]
[368620161,1751241050729,-1244.77,0.00019112,2]
[368620162,1751241050738,-460.0,0.00019112,2]
[368620163,1751241050747,-460.0,0.00019115,2]
[368620164,1751241050757,-460.0,0.00019115,2]
[368620165,1751241050766,-460.0,0.00019115,2]
[368620166,1751241050775,-460.0,0.00019115,2]
[368620167,1751241050784,-752.27,0.00019115,2]
[368620168,1751241050793,-460.0,0.00019115,2]
[368620169,1751241050803,-460.0,0.00019115,2]
[368620170,1751241050813,-460.0,0.00019115,2]
[368620171,1751241050822,-460.0,0.00019115,2]
[368620172,1751241050831,-460.0,0.00019117,2]
[368620173,1751241050840,-212.31030742,0.00019117,2]
[368620174,1751241050850,-460.0,0.00019117,2]
[368620175,1751241050859,-460.0,0.00019118,2]
[368620176,1751241050867,-460.0,0.00019118,2]
[368620177,1751241050877,-460.0,0.00019118,2]
[368620178,1751241050886,-460.0,0.00019118,2]
[368620179,1751241050895,-492.84065387,0.00019118,2]
[368620180,1751241050904,-460.0,0.00019118,2]
[368620181,1751241050913,-460.0,0.00019118,2]
[368620182,1751241050922,-460.0,0.00019118,2]
[368620183,1751241050931,-290.0,0.00019118,2]
[368620184,1751241050943,-460.0,0.00019118,2]
[368620185,1751241050952,-460.0,0.00019118,2]
[368620186,1751241050961,-460.0,0.00019121,2]
[368620187,1751241050971,-508.08,0.00019121,2]
[368620188,1751241050981,-460.0,0.00019121,2]
[368620189,1751241050990,-460.0,0.00019121,2]
[368620190,1751241050999,-383.45,0.00019121,2]
[368620191,1751241051008,-460.0,0.00019121,2]
[368620192,1751241051019,-460.0,0.00019137,2]
[368620193,1751241051030,-500.0,0.00019164,2]
[368620194,1751241051039,-151.0,0.00019178,2]
[368620195,1751241051048,-252.121209,0.00019178,2]
[368620196,1751241051058,-252.121209,0.00019178,2]
[368620197,1751241051067,-151.882799,0.00019178,2]
[368620198,1751241051077,-151.0,0.00019178,2]
[368620199,1751241051086,-151.0,0.00019178,2]
[368620200,1751241051095,-151.0,0.00019178,2]
[368620201,1751241051107,-906.572505,0.00019178,2]
[368620202,1751241051117,-906.572505,0.00019178,2]
[368620203,1751241051127,-151.0,0.00019178,2]
[368620204,1751241051137,-500.0,0.00019178,2]
[368620205,1751241051146,-151.0,0.00019178,2]
[368620206,1751241051156,-151.0,0.00019178,2]
[368620207,1751241051165,-151.0,0.00019178,2]
[368620208,1751241051174,-151.0,0.00019178,2]
[368620209,1751241051184,-151.0,0.00019178,2]
[368620210,1751241051193,-151.36624201,0.00019178,2]
[368620211,1751241051202,-227.75927338,0.00019178,2]
[368620212,1751241051212,-151.0,0.00019178,2]
[368620213,1751241051223,-500.0,0.00019178,2]
[368620214,1751241051232,-151.0,0.00019178,2]
[368620215,1751241051241,-500.0,0.00019178,2]
[368620216,1751241051251,-168.79270327,0.00019178,2]
[368620217,1751241051260,-500.0,0.00019178,2]
[368620218,1751241051269,-151.0,0.00019178,2]
[368620219,1751241051278,-151.0,0.00019178,2]
[368620220,1751241051287,-151.0,0.00019178,2]
[368620221,1751241051297,-151.0,0.00019178,2]
[368620222,1751241051307,-500.0,0.00019178,2]
[368620223,1751241051316,-151.0,0.00019178,2]
[368620224,1751241051326,-500.0,0.00019178,2]
[368620225,1751241051335,-571.550197,0.00019178,2]
[368620226,1751241051344,-151.0,0.00019205,2]
[368620227,1751241051354,-500.0,0.00019205,2]
[368620228,1751241051364,-151.0,0.00019205,2]
[368620229,1751241051373,-151.0,0.00019205,2]
[368620230,1751241051383,-151.0,0.00019205,2]
[368620231,1751241051392,-151.0,0.00019205,2]
[368620232,1751241051401,-151.0,0.00019205,2]
[368620233,1751241051411,-500.0,0.00019205,2]
[368620234,1751241051420,-151.0,0.00019205,2]
[368620235,1751241051430,-500.0,0.00019205,2]
[368620236,1751241051439,-500.0,0.00019205,2]
[368620237,1751241051448,-151.0,0.00019205,2]
[368620238,1751241051457,-254.80061498,0.00019205,2]
[368620239,1751241051467,-500.0,0.00019205,2]
[368620240,1751241051476,-500.0,0.00019205,2]
[368620241,1751241051485,-198.0,0.00019233,2]
[368620242,1751241051495,-500.0,0.00019233,2]
[368620243,1751241051505,-151.0,0.00019233,2]
[368620244,1751241051515,-500.0,0.00019233,2]
[368620245,1751241051525,-198.0,0.00019233,2]
[368620246,1751241051534,-500.0,0.00019233,2]
[368620247,1751241051544,-500.0,0.00019233,2]
[368620248,1751241051554,-503.0856224,0.00019233,2]
[368620249,1751241051564,-500.0,0.00019233,2]
[368620250,1751241051573,-524.0,0.00019259,2]
[368620251,1751241051582,-352.0,0.00019259,2]
[368620252,1751241051592,-151.0,0.0001926,2]
[368620253,1751241051602,-151.0,0.0001926,2]
[368620254,1751241051611,-287.29486839,0.0001926,2]
[368620255,1751241051621,-500.0,0.0001926,2]
[368620256,1751241051630,-463.58157554,0.0001926,2]
[368620257,1751241051641,-500.0,0.0001926,2]
[368620258,1751241051650,-151.0,0.00019288,2]
[368620259,1751241051660,-196.91395842,0.00019288,2]
[368620260,1751241051670,-500.0,0.00019288,2]
[368620261,1751241051679,-2941.09603807,0.00019314,2]
[368620262,1751241051689,-245.0,0.00019315,2]
[368620263,1751241051698,-500.0,0.00019315,2]
[368620264,1751241051708,-61829.66135223,0.00019329,2]
[368620265,1751241051717,-396.0,0.00019342,2]
[368620266,1751241051726,-500.0,0.00019372,2]
[368620267,1751241051735,-500.0,0.00019372,2]
[368620268,1751241051745,-3729.913163,0.00019372,2]
[368620269,1751241051754,-650.41607277,0.00019372,2]
[368620270,1751241051764,-3729.913163,0.00019372,2]
[368620271,1751241051773,-650.41607277,0.00019372,2]
[368620272,1751241051782,-500.0,0.00019372,2]
[368620273,1751241051792,-3729.913163,0.00019372,2]
[368620274,1751241051802,-650.41607277,0.00019372,2]
[368620275,1751241051811,-650.41607277,0.00019372,2]
[368620276,1751241051820,-390.13654751,0.00019372,2]
[368620277,1751241051829,-500.0,0.00019372,2]
[368620278,1751241051839,-3729.913163,0.00019372,2]
[368620279,1751241051848,-500.0,0.00019372,2]
[368620280,1751241051857,-500.0,0.00019372,2]
[368620281,1751241051866,-500.0,0.00019372,2]
[368620282,1751241051875,-650.41607277,0.00019372,2]
[368620283,1751241051884,-500.0,0.00019372,2]
[368620284,1751241051894,-3729.913163,0.00019372,2]
[368620285,1751241051904,-3729.913163,0.00019372,2]
[368620286,1751241051913,-3729.913163,0.00019372,2]
[368620287,1751241051923,-500.0,0.00019372,2]
[368620288,1751241051935,-3729.913163,0.00019372,2]
[368620289,1751241051949,-650.41607277,0.00019372,2]
[368620290,1751241051959,-500.0,0.00019372,2]
[368620291,1751241051969,-3729.913163,0.00019372,2]
[368620292,1751241051979,-3729.913163,0.00019372,2]
[368620293,1751241051990,-3729.913163,0.00019372,2]
[368620294,1751241052000,-650.41607277,0.00019372,2]
[368620295,1751241052009,-3729.913163,0.00019372,2]
[368620296,1751241052027,-460.0,0.00019373,2]
[368620297,1751241052036,-460.0,0.00019373,2]
[368620298,1751241052046,-1966.62,0.00019373,2]
[368620299,1751241052056,-460.0,0.00019373,2]
[368620300,1751241052065,-460.0,0.00019373,2]
[368620301,1751241052075,-460.0,0.00019373,2]
[368620302,1751241052084,-460.0,0.00019378,2]
[368620303,1751241052094,-524.0,0.00019378,2]
[368620304,1751241052103,-1525.14,0.00019379,2]
[368620305,1751241052112,-2512.81,0.00019379,2]
[368620306,1751241052123,-460.0,0.00019379,2]
[368620307,1751241052132,-3259.9,0.00019379,2]
[368620308,1751241052141,-568.58,0.00019379,2]
[368620309,1751241052151,-460.0,0.00019379,2]
[368620310,1751241052160,-460.0,0.00019379,2]
[368620311,1751241052170,-2961.32,0.00019379,2]
[368620312,1751241052179,-2848.07,0.00019379,2]
[368620313,1751241052188,-3176.44,0.00019379,2]
[368620314,1751241052197,-460.0,0.00019379,2]
[368620315,1751241052207,-1539.44,0.00019379,2]
[368620316,1751241052217,-460.0,0.00019379,2]
[368620317,1751241052227,-460.0,0.00019379,2]
[368620318,1751241052236,-563.34,0.00019379,2]
[368620319,1751241052246,-499.37,0.00019379,2]
[368620320,1751241052256,-1523.33,0.00019379,2]
[368620321,1751241052266,-460.0,0.00019379,2]
[368620322,1751241052277,-460.0,0.00019381,2]
[368620323,1751241052287,-460.0,0.00019381,2]
[368620324,1751241052296,-460.0,0.00019381,2]
[368620325,1751241052306,-460.0,0.00019381,2]
[368620326,1751241052315,-460.0,0.00019381,2]
[368620327,1751241052324,-460.0,0.00019381,2]
[368620328,1751241052335,-460.0,0.00019381,2]
[368620329,1751241052344,-460.0,0.00019381,2]
[368620330,1751241052354,-460.0,0.00019381,2]
[368620331,1751241052363,-460.0,0.00019381,2]
[368620332,1751241052372,-460.0,0.00019381,2]
[368620333,1751241052383,-460.0,0.00019381,2]
[368620334,1751241052393,-460.0,0.00019381,2]
[368620335,1751241052403,-602.87,0.00019381,2]
[368620336,1751241052412,-750.52,0.00019381,2]
[368620337,1751241052421,-460.0,0.00019381,2]
[368620338,1751241052431,-460.0,0.00019381,2]
[368620339,1751241052440,-460.0,0.00019381,2]
[368620340,1751241052449,-460.0,0.00019381,2]
[368620341,1751241052458,-445.34142947,0.00019381,2]
[368620342,1751241052468,-665.73,0.00019381,2]
[368620343,1751241052478,-460.0,0.00019381,2]
[368620344,1751241052487,-518.24,0.00019381,2]
[368620345,1751241052496,-460.0,0.00019381,2]
[368620346,1751241052506,-500.15,0.00019381,2]
[368620347,1751241052515,-1005.54,0.00019381,2]
[368620348,1751241052524,-460.0,0.00019381,2]
[368620349,1751241052534,-233.96468876,0.00019381,2]
[368620350,1751241052543,-460.0,0.00019381,2]
[368620351,1751241052553,-269.4,0.00019381,2]
[368620352,1751241052563,-553.65688001,0.00019381,2]
[368620353,1751241052572,-460.0,0.00019381,2]
[368620354,1751241052581,-460.0,0.00019381,2]
[368620355,1751241052590,-438.63062073,0.00019381,2]
[368620356,1751241052599,-460.0,0.00019381,2]
[368620357,1751241052608,-460.0,0.00019382,2]
[368620358,1751241052618,-460.0,0.00019382,2]
[368620359,1751241052627,-956.85,0.00019382,2]
[368620360,1751241052636,-326.22069161,0.00019382,2]
[368620361,1751241052645,-460.0,0.00019382,2]
[368620362,1751241052655,-460.0,0.00019382,2]
[368620363,1751241052664,-460.0,0.00019382,2]
[368620364,1751241052673,-460.0,0.00019382,2]
[368620365,1751241052682,-460.0,0.00019382,2]
[368620366,1751241052691,-3836.87,0.00019382,2]
[368620367,1751241052700,-547.33,0.00019382,2]
[368620368,1751241052710,-1212.96,0.00019382,2]
[368620369,1751241052719,-460.0,0.00019382,2]
[368620370,1751241052728,-460.0,0.00019382,2]
[368620371,1751241052738,-1557.76,0.00019382,2]
[368620372,1751241052747,-511.49,0.00019382,2]
[368620373,1751241052756,-597.8,0.00019382,2]
[368620374,1751241052765,-623.64,0.00019382,2]
[368620375,1751241052775,-460.0,0.00019383,2]
[368620376,1751241052783,-460.0,0.00019383,2]
[368620377,1751241052793,-500.0,0.00019383,2]
[368620378,1751241052802,-1246.97,0.00019384,2]
[368620379,1751241052811,-1117.53,0.00019384,2]
[368620380,1751241052820,-460.0,0.00019384,2]
[368620381,1751241052829,-460.0,0.00019384,2]
[368620382,1751241052839,-460.0,0.00019384,2]
[368620383,1751241052848,-1705.81,0.00019384,2]
[368620384,1751241052857,-460.0,0.00019384,2]
[368620385,1751241052866,-1289.95,0.00019384,2]
[368620386,1751241052875,-1644.07,0.00019384,2]
[368620387,1751241052884,-847.69,0.00019384,2]
[368620388,1751241052893,-460.0,0.00019385,2]
[368620389,1751241052903,-460.0,0.00019385,2]
[368620390,1751241052912,-460.0,0.00019385,2]
[368620391,1751241052921,-460.0,0.00019385,2]
[368620392,1751241052930,-460.0,0.00019385,2]
[368620393,1751241052943,-460.0,0.00019385,2]
[368620394,1751241052952,-460.0,0.00019385,2]
[368620395,1751241052961,-460.0,0.00019385,2]
[368620396,1751241052970,-460.0,0.00019385,2]
[368620397,1751241052979,-460.0,0.00019385,2]
[368620398,1751241052990,-460.0,0.00019385,2]
[368620399,1751241052999,-460.0,0.00019385,2]
[368620400,1751241053008,-585.0,0.00019385,2]
[368620401,1751241053019,-460.0,0.00019385,2]
[368620402,1751241053029,-460.0,0.00019385,2]
[368620403,1751241053038,-465.58660463,0.00019385,2]
[368620404,1751241053048,-460.0,0.00019385,2]
[368620405,1751241053058,-460.0,0.00019385,2]
[368620406,1751241053067,-460.0,0.00019385,2]
[368620407,1751241053076,-729.37,0.00019385,2]
[368620408,1751241053086,-608.38,0.00019385,2]
[368620409,1751241053094,-460.0,0.00019385,2]
[368620410,1751241053104,-460.0,0.00019385,2]
[368620411,1751241053114,-464.80389089,0.00019385,2]
[368620412,1751241053123,-460.0,0.00019385,2]
[368620413,1751241053132,-460.0,0.00019385,2]
[368620414,1751241053141,-460.0,0.00019385,2]
[368620415,1751241053150,-460.0,0.00019385,2]
[368620416,1751241053160,-460.0,0.00019385,2]
[368620417,1751241053169,-460.0,0.00019385,2]
[368620418,1751241053177,-546.36,0.00019386,2]
[368620419,1751241053186,-1244.77,0.00019386,2]
[368620420,1751241053195,-460.0,0.00019386,2]
[368620421,1751241053205,-460.0,0.00019389,2]
[368620422,1751241053214,-460.0,0.00019389,2]
[368620423,1751241053223,-460.0,0.00019389,2]
[368620424,1751241053232,-460.0,0.00019389,2]
[368620425,1751241053241,-752.27,0.00019389,2]
[368620426,1751241053250,-460.0,0.00019389,2]
[368620427,1751241053259,-460.0,0.00019389,2]
[368620428,1751241053268,-535.27,0.00019389,2]
[368620429,1751241053277,-151.0,0.00019389,2]
[368620430,1751241053286,-881.966699,0.00019391,2]
[368620431,1751241053296,-881.966699,0.00019391,2]
[368620432,1751241053305,-460.0,0.00019391,2]
[368620433,1751241053314,-460.0,0.00019391,2]
[368620434,1751241053323,-460.0,0.00019392,2]
[368620435,1751241053333,-460.0,0.00019392,2]
[368620436,1751241053342,-460.0,0.00019392,2]
[368620437,1751241053351,-460.0,0.00019392,2]
[368620438,1751241053361,-460.0,0.00019392,2]
[368620439,1751241053486,-338.94926014,0.00019392,2]
[368620440,1751241053496,-262.65229,0.00019395,2]
[368620441,1751241053506,-460.0,0.00019395,2]
[368620442,1751241053516,-460.0,0.00019395,2]
[368620443,1751241053526,-460.0,0.00019395,2]
[368620444,1751241053535,-252.121209,0.00019409,2]
[368620445,1751241053545,-252.121209,0.00019409,2]
[368620446,1751241053555,-151.0,0.00019409,2]
[368620447,1751241053564,-151.0,0.00019409,2]
[368620448,1751241053574,-906.572505,0.00019409,2]
[368620449,1751241053584,-906.572505,0.00019409,2]
[368620450,1751241053594,-502.89649884,0.0001941,2]
[368620451,1751241053603,-1000.0,0.0001941,2]
[368620452,1751241053612,-500.0,0.0001941,2]
[368620453,1751241053622,-1000.0,0.0001941,2]
[368620454,1751241053632,-460.0,0.00019411,2]
[368620455,1751241053641,-2217.40136788,0.00019423,2]
[368620456,1751241053650,-207.4,0.00019429,2]
[368620457,1751241053660,-500.0,0.00019429,2]
[368620458,1751241053670,-500.0,0.00019429,2]
[368620459,1751241053680,-500.0,0.00019429,2]
[368620460,1751241053690,-5000.0,0.00019429,2]
[368620461,1751241053699,-500.0,0.00019429,2]
[368620462,1751241053708,-500.0,0.00019429,2]
[368620463,1751241053718,-500.0,0.00019429,2]
[368620464,1751241053727,-500.0,0.00019429,2]
[368620465,1751241053737,-500.0,0.00019429,2]
[368620466,1751241053746,-500.0,0.00019429,2]
[368620467,1751241053755,-500.0,0.00019429,2]
[368620468,1751241053765,-500.0,0.00019429,2]
[368620469,1751241053774,-500.0,0.00019429,2]
[368620470,1751241053784,-500.0,0.00019429,2]
[368620471,1751241053793,-500.0,0.00019429,2]
[368620472,1751241053803,-500.0,0.00019429,2]
[368620473,1751241053813,-500.0,0.00019429,2]
[368620474,1751241053822,-500.0,0.00019429,2]
[368620475,1751241053832,-11600.76342991,0.00019429,2]
[368620476,1751241053843,-252.121209,0.00019429,2]
[368620477,1751241053852,-252.121209,0.00019429,2]
[368620478,1751241053861,-151.0,0.00019429,2]
[368620479,1751241053871,-151.0,0.00019429,2]
[368620480,1751241053880,-906.572505,0.00019429,2]
[368620481,1751241053889,-906.572505,0.00019429,2]
[368620482,1751241053898,-980.65187058,0.00019436,2]
[368620483,1751241053908,-1000.0,0.00019436,2]
[368620484,1751241053918,-503.32406499,0.00019436,2]
[368620485,1751241053927,-352.0,0.00019437,2]
[368620486,1751241053937,-152.176377,0.00019453,2]
[368620487,1751241053950,-151.0,0.00019453,2]
[368620488,1751241053960,-155.678166,0.00019453,2]
[368620489,1751241053969,-151.0,0.00019453,2]
[368620490,1751241053979,-151.0,0.00019453,2]
[368620491,1751241053990,-151.0,0.00019453,2]
[368620492,1751241054000,-151.0,0.00019453,2]
[368620493,1751241054011,-151.0,0.00019453,2]
[368620494,1751241054020,-163.353441,0.00019453,2]
[368620495,1751241054030,-163.353441,0.00019453,2]
[368620496,1751241054040,-151.0,0.00019453,2]
[368620497,1751241054050,-1000.0,0.00019455,2]
[368620498,1751241054060,-506.37154004,0.00019455,2]
[368620499,1751241054069,-1000.0,0.00019455,2]
[368620500,1751241054079,-1000.43898569,0.00019455,2]
[368620501,1751241054089,-1000.0,0.00019455,2]
[368620502,1751241054099,-1000.0,0.00019455,2]
[368620503,1751241054108,-1000.0,0.00019455,2]
[368620504,1751241054118,-500.2495824,0.00019455,2]
[368620505,1751241054127,-1000.0,0.00019455,2]
[368620506,1751241054137,-881.28953766,0.00019455,2]
[368620507,1751241054147,-1000.84850324,0.00019455,2]
[368620508,1751241054157,-500.0,0.00019455,2]
[368620509,1751241054167,-1000.0,0.00019455,2]
[368620510,1751241054177,-352.0,0.00019458,2]
[368620511,1751241054186,-213.82031328,0.00019491,2]